bitfinex-derivatives/quotes_BTCF0:USTF0_20251028
["timestamp","ask_amount","ask_price","bid_price","bid_amount"]
[1761630580872,0.2120057,113780.0,113770.0,0.2008857]
[1761630581072,0.05894,113780.0,113770.0,0.2008857]
[1761630581263,0.05894,113780.0,113770.0,0.2887837]
[1761630581464,0.04596,113780.0,113770.0,0.3018837]
[1761630582761,0.04596,113780.0,113770.0,0.30857416]
[1761630582968,0.02426,113780.0,113770.0,0.30857416]
[1761630583168,0.001,113780.0,113770.0,0.30857416]
[1761630583664,0.04596,113780.0,113770.0,0.30857416]
[1761630585063,0.2119457,113780.0,113770.0,0.04782]
[1761630585268,0.2119457,113780.0,113770.0,0.2008857]
[1761630585469,0.2119457,113780.0,113770.0,0.1357181]
[1761630585668,0.2119457,113780.0,113770.0,0.2887838]
[1761630586173,0.2119457,113780.0,113770.0,0.04782]
[1761630586373,0.3650114,113780.0,113770.0,0.0252]
[1761630586677,0.3650114,113780.0,113770.0,0.04782]
[1761630587375,0.05888,113780.0,113770.0,0.04782]
[1761630587571,0.3650114,113780.0,113770.0,0.04782]
[1761630587770,0.3650114,113780.0,113770.0,0.004]
[1761630589082,0.3650114,113780.0,113770.0,0.0252]
[1761630589379,0.3650114,113780.0,113770.0,0.004]
[1761630590982,0.3650114,113780.0,113770.0,0.04782]
[1761630592687,0.2119457,113780.0,113770.0,0.04782]
[1761630593590,0.2119457,113780.0,113770.0,0.2008857]
[1761630593880,0.2119457,113780.0,113770.0,0.04782]
[1761630594186,0.3650114,113780.0,113770.0,0.04782]
[1761630596774,0.3650114,113780.0,113770.0,0.004]
[1761630598490,0.38809699,113780.0,113770.0,0.004]
[1761630598888,0.39502453,113780.0,113770.0,0.004]
[1761630599288,0.38809699,113780.0,113770.0,0.004]
[1761630599684,0.54116269,113780.0,113770.0,0.004]
[1761630599891,0.38809699,113780.0,113770.0,0.004]
[1761630601091,0.39498823,113780.0,113770.0,0.004]
[1761630602789,1.18160246,113780.0,113730.0,0.224581]
[1761630603086,0.05885,113740.0,113730.0,0.51002812]
[1761630603280,0.2119157,113740.0,113730.0,0.35069846]
[1761630603485,0.2119157,113740.0,113730.0,0.50376416]
[1761630603685,0.2119157,113740.0,113730.0,0.41797632]
[1761630604291,0.2119157,113740.0,113730.0,0.17898142]
[1761630604592,0.3649814,113740.0,113730.0,0.0596]
[1761630604985,0.3649814,113740.0,113730.0,0.0466]
[1761630605195,0.3679814,113740.0,113730.0,0.0696]
[1761630605494,0.2149157,113740.0,113730.0,0.0696]
[1761630605684,0.3649814,113740.0,113730.0,0.0476]
[1761630605890,0.3669814,113740.0,113730.0,0.03263]
[1761630606593,0.3669814,113740.0,113730.0,0.01]
[1761630608187,0.3669814,113740.0,113730.0,0.007]
[1761630608388,0.3669814,113740.0,113730.0,0.008]
[1761630609591,0.5200471,113740.0,113730.0,0.008]
[1761630609893,0.3669814,113740.0,113730.0,0.008]
[1761630611286,0.3689814,113740.0,113730.0,0.003]
[1761630611687,0.5220471,113740.0,113710.0,8.15e-05]
[1761630611890,0.3644114,113720.0,113710.0,8.15e-05]
[1761630613194,0.3644114,113720.0,113710.0,0.0020815]
[1761630614500,0.3664114,113720.0,113710.0,0.0040815]
[1761630615397,0.05828,113690.0,113680.0,0.2045235]
[1761630615602,0.2113457,113690.0,113680.0,0.04416]
[1761630616302,0.2114272,113690.0,113680.0,0.04416]
[1761630617699,0.2154272,113690.0,113680.0,0.06316]
[1761630618303,0.2154272,113690.0,113680.0,0.06616]
[1761630621497,0.2154272,113690.0,113680.0,0.2192257]
[1761630621701,0.0623615,113690.0,113680.0,0.06616]
[1761630626503,0.2156236,113690.0,113680.0,0.04404]
[1761630627212,0.2156236,113690.0,113680.0,0.022]
[1761630627603,0.8116236,113690.0,113680.0,0.003]
[1761630627803,0.23657309,113690.0,113680.0,0.008]
[1761630628113,0.2136236,113690.0,113680.0,0.008]
[1761630628409,0.0603615,113690.0,113680.0,0.2858407]
[1761630628613,0.0471815,113690.0,113680.0,0.2995907]
[1761630628817,0.0604215,113690.0,113680.0,0.04561]
[1761630629916,0.0604215,113690.0,113680.0,0.1335779]
[1761630631114,0.0604215,113690.0,113680.0,0.28684]
[1761630631413,0.0604215,113690.0,113680.0,0.29959]
[1761630631809,0.0020815,113690.0,113680.0,0.29959]
[1761630632514,0.0242115,113690.0,113680.0,0.29959]
[1761630633711,0.0020815,113690.0,113680.0,0.29959]
[1761630635013,0.2140136,113690.0,113680.0,0.02273]
[1761630635317,0.23703503,113690.0,113680.0,0.04561]
[1761630635523,0.08377293,113690.0,113680.0,0.04561]
[1761630635710,0.0607515,113690.0,113680.0,0.04561]
[1761630635905,0.08377293,113690.0,113680.0,0.04561]
[1761630639517,0.04543,113650.0,113640.0,0.1453549]
[1761630639721,0.03120991,113650.0,113640.0,0.30573099]
[1761630640016,0.03120991,113650.0,113640.0,0.43808991]
[1761630640222,8.15e-05,113650.0,113640.0,0.43808991]
[1761630640625,0.0222115,113650.0,113640.0,0.43954799]
[1761630640918,0.0455115,113650.0,113640.0,0.28628589]
[1761630641227,0.0485115,113650.0,113640.0,0.19869627]
[1761630641623,0.0485115,113650.0,113640.0,0.28669527]
[1761630642522,0.0617515,113650.0,113640.0,0.17883228]
[1761630642827,0.2150136,113650.0,113640.0,0.04647676]
[1761630643023,0.2150136,113650.0,113640.0,0.05922676]
[1761630643328,0.0485115,113650.0,113640.0,0.05922676]
[1761630644028,0.0617515,113650.0,113640.0,0.04647676]
[1761630644417,0.0617515,113650.0,113640.0,0.05922676]
[1761630644617,0.0485115,113650.0,113640.0,0.05922676]
[1761630646527,0.38312157,113650.0,113640.0,0.04647676]
[1761630646824,0.08478858,113650.0,113640.0,0.04714418]
[1761630647422,0.08478858,113650.0,113640.0,0.04768412]
[1761630647729,0.07154858,113650.0,113640.0,0.06043412]
[1761630648032,0.0485115,113650.0,113640.0,0.06043412]
[1761630648223,0.0485115,113650.0,113640.0,0.14843292]
[1761630649733,0.0617515,113650.0,113640.0,0.00307412]
[1761630649928,0.0617515,113650.0,113640.0,0.02480412]
[1761630650231,0.0617515,113650.0,113640.0,0.04768412]
[1761630650832,0.0485115,113650.0,113640.0,0.06043412]
[1761630651331,0.0485115,113650.0,113640.0,0.14843292]
[1761630651631,0.0485115,113650.0,113640.0,0.06043412]
[1761630652633,0.0617515,113650.0,113640.0,0.06043412]
[1761630652928,0.0485115,113650.0,113640.0,0.14843292]
[1761630653135,0.0485115,113650.0,113640.0,0.06043412]
[1761630654129,0.0252115,113650.0,113640.0,0.14843352]
[1761630654335,0.0030815,113650.0,113640.0,0.14843352]
[1761630654929,0.0030815,113650.0,113640.0,0.46980359]
[1761630655727,0.0030815,113650.0,113640.0,1.06980359]
[1761630656331,0.05867,113690.0,113680.0,0.04461]
[1761630656525,0.05867,113690.0,113670.0,0.05736]
[1761630656526,0.0816964,113690.0,113670.0,0.05736]
[1761630656726,0.05867,113680.0,113670.0,0.05736]
[1761630657533,0.04543,113680.0,113670.0,0.06043412]
[1761630657935,0.05143,113680.0,113670.0,0.06043412]
[1761630660640,0.06484,113680.0,113670.0,0.04768412]
[1761630661026,0.06484,113680.0,113670.0,0.00307412]
[1761630661430,0.06484,113680.0,113670.0,0.02413412]
[1761630661835,0.06484,113680.0,113670.0,0.00307412]
[1761630662034,0.06484,113680.0,113630.0,0.079003]
[1761630662035,0.05792,113640.0,113630.0,0.079003]
[1761630662339,0.04645702,113640.0,113630.0,0.0421859]
[1761630662534,0.04361702,113640.0,113630.0,0.0555259]
[1761630663637,0.04645702,113640.0,113630.0,0.0555259]
[1761630663938,0.05045702,113640.0,113630.0,0.0585259]
[1761630664241,0.04761702,113640.0,113630.0,0.0585259]
[1761630669345,0.04761702,113640.0,113630.0,0.1465323]
[1761630670241,0.04761702,113640.0,113630.0,0.0585259]
[1761630670540,0.04761702,113640.0,113630.0,0.1465322]
[1761630673549,0.004,113640.0,113630.0,0.1465322]
[1761630675350,0.06881097,113680.0,113670.0,0.05749]
[1761630675542,0.0682847,113680.0,113670.0,0.05749]
[1761630675746,0.04524,113680.0,113670.0,0.1454654]
[1761630676450,0.04524,113680.0,113670.0,0.05749]
[1761630676649,0.04824,113680.0,113670.0,0.05849]
[1761630677054,0.06163,113680.0,113670.0,0.001]
[1761630677254,0.06163,113680.0,113670.0,0.04517]
[1761630677556,0.05863,113680.0,113670.0,0.04417]
[1761630677757,0.06163,113680.0,113670.0,0.04517]
[1761630679449,0.06163,113680.0,113670.0,0.04817]
[1761630680660,0.06163,113680.0,113670.0,0.004]
[1761630681748,0.30122119,113680.0,113670.0,0.004]
[1761630683559,0.30122119,113680.0,113670.0,0.02577]
[1761630684559,0.30122119,113680.0,113670.0,0.04817]
[1761630685461,0.06163,113680.0,113670.0,0.04817]
[1761630685762,0.04824,113680.0,113670.0,0.06149]
[1761630686661,0.04824,113680.0,113670.0,0.1494656]
[1761630687559,0.003,113680.0,113670.0,0.1494656]
[1761630688371,0.04668,113680.0,113670.0,0.1494656]
[1761630688560,0.003,113680.0,113670.0,0.1494656]
[1761630688970,0.02531,113680.0,113670.0,0.1494656]
[1761630689355,0.04685,113680.0,113670.0,0.04817]
[1761630689669,0.89974119,113680.0,113670.0,0.004]
[1761630690966,0.29974119,113680.0,113670.0,0.004]
[1761630692170,0.35974119,113680.0,113670.0,0.004]
[1761630692469,0.35974119,113680.0,113640.0,0.04474]
[1761630692470,0.29674119,113650.0,113640.0,0.04474]
[1761630693556,0.29674119,113650.0,113640.0,0.0462471]
[1761630693863,0.29974119,113650.0,113640.0,0.0532471]
[1761630694168,0.04685,113650.0,113640.0,0.06743714]
[1761630694361,0.28644119,113650.0,113640.0,0.06743714]
[1761630694768,0.04685,113650.0,113640.0,0.06743714]
[1761630695458,0.04685,113650.0,113640.0,0.06443714]
[1761630696370,0.28644119,113650.0,113640.0,0.06443714]
[1761630696866,0.02531,113650.0,113640.0,0.06443714]
[1761630697275,0.04685,113650.0,113640.0,0.06443714]
[1761630698368,0.04685,113650.0,113640.0,0.05065714]
[1761630698369,0.29974119,113650.0,113640.0,0.05065714]
[1761630698766,0.29974119,113650.0,113640.0,0.06443714]
[1761630698968,0.28644119,113650.0,113640.0,0.06443714]
[1761630699672,0.04685,113650.0,113640.0,0.06443714]
[1761630701475,0.28644119,113650.0,113640.0,0.06443714]
[1761630702471,0.29974119,113650.0,113640.0,0.00591714]
[1761630707766,0.29974119,113650.0,113640.0,0.06443714]
[1761630708173,0.28644119,113650.0,113640.0,0.06443714]
[1761630708776,0.29974119,113650.0,113640.0,0.06443714]
[1761630709073,0.29974119,113650.0,113640.0,0.05065714]
[1761630710173,0.29974119,113650.0,113640.0,0.02778714]
[1761630710782,0.29974119,113650.0,113640.0,0.05065714]
[1761630712578,0.53933238,113650.0,113640.0,0.00591714]
[1761630712883,0.53933238,113650.0,113610.0,0.05852]
[1761630712884,0.04385,113620.0,113610.0,0.05852]
[1761630713781,0.0439259,113620.0,113610.0,0.05852]
[1761630714682,0.0489259,113620.0,113610.0,0.05852]
[1761630714879,0.0050759,113620.0,113610.0,0.05852]
[1761630715084,0.0050759,113620.0,113610.0,0.7465419]
[1761630715872,0.0050759,113620.0,113610.0,0.1465419]
[1761630716076,0.0050759,113620.0,113610.0,0.05852]
[1761630716482,0.0050759,113620.0,113610.0,0.1465414]
[1761630718287,0.0050759,113620.0,113610.0,0.1465417]
[1761630718486,0.0050759,113620.0,113610.0,0.20966861]
[1761630719686,0.0497559,113620.0,113610.0,0.20966861]
[1761630720488,0.0497559,113620.0,113610.0,0.12164691]
[1761630721178,0.28934709,113620.0,113610.0,0.05852]
[1761630721784,0.0497559,113620.0,113610.0,0.05852]
[1761630723993,0.28934709,113620.0,113610.0,0.05852]
[1761630724692,0.0497559,113620.0,113610.0,0.05852]
[1761630725093,0.0497559,113620.0,113610.0,0.12164691]
[1761630725394,0.0497559,113620.0,113610.0,0.05852]
[1761630727484,0.0283659,113620.0,113610.0,0.05777]
[1761630727683,0.06946241,113660.0,113650.0,0.05836]
[1761630727884,0.04591,113660.0,113650.0,0.05836]
[1761630728095,0.05893,113660.0,113650.0,0.04533]
[1761630728499,0.28550119,113660.0,113650.0,0.05836]
[1761630728791,0.29852119,113660.0,113640.0,0.04533]
[1761630728995,0.28550119,113650.0,113640.0,0.05836]
[1761630729894,0.19930861,113650.0,113640.0,0.05836]
[1761630730693,0.04891,113660.0,113650.0,0.01303]
[1761630730996,0.04891,113660.0,113650.0,0.05836]
[1761630731187,0.35270722,113660.0,113650.0,0.05836]
[1761630731701,0.2855493,113660.0,113650.0,0.05836]
[1761630731892,0.2885493,113660.0,113650.0,0.05836]
[1761630732499,0.04891,113660.0,113650.0,0.05836]
[1761630732699,0.2885493,113660.0,113650.0,0.05836]
[1761630735201,0.3015693,113660.0,113650.0,0.04533]
[1761630735601,0.3015693,113660.0,113650.0,0.05836]
[1761630735801,0.2885493,113660.0,113650.0,0.05836]
[1761630736196,0.04891,113660.0,113650.0,0.05836]
[1761630736398,0.2885493,113660.0,113650.0,0.05836]
[1761630740508,0.3015693,113660.0,113650.0,0.04533]
[1761630741700,0.38333732,113660.0,113650.0,0.04533]
[1761630742715,0.40563534,113660.0,113650.0,0.04533]
[1761630742900,0.40563534,113660.0,113650.0,0.05836]
[1761630743100,0.40563527,113660.0,113650.0,0.05836]
[1761630744525,0.39261527,113660.0,113650.0,0.05836]
[1761630744712,0.40563527,113660.0,113650.0,0.04533]
[1761630746518,0.05173,113650.0,113640.0,0.04533]
[1761630746715,0.05921,113640.0,113630.0,0.04533]
[1761630747020,0.38061732,113640.0,113630.0,0.04533]
[1761630747218,0.05921,113640.0,113630.0,0.04533]
[1761630748110,0.06321,113640.0,113630.0,0.04633]
[1761630748718,0.04991,113640.0,113630.0,0.0592]
[1761630753731,0.20331591,113640.0,113630.0,0.0592]
[1761630753926,0.04991,113640.0,113630.0,0.0592]
[1761630754129,0.20331591,113640.0,113630.0,0.0592]
[1761630754327,0.04991,113640.0,113630.0,0.0592]
[1761630756233,0.04991,113640.0,113630.0,0.12232691]
[1761630760535,0.20331591,113640.0,113630.0,0.12232691]
[1761630761930,0.04991,113640.0,113630.0,0.21033291]
[1761630762440,0.04991,113640.0,113630.0,0.12232691]
[1761630762825,0.004,113640.0,113630.0,0.12232691]
[1761630763035,0.0484,113640.0,113630.0,0.12232691]
[1761630763234,0.02733,113640.0,113630.0,0.21033311]
[1761630763537,0.004,113640.0,113630.0,0.21033311]
[1761630764831,0.004,113640.0,113630.0,0.36373902]
[1761630765242,0.004,113640.0,113630.0,0.21033311]
[1761630765735,0.004,113640.0,113630.0,0.36373902]
[1761630765939,0.004,113640.0,113630.0,0.21033311]
[1761630767441,0.004,113640.0,113630.0,0.1472062]
[1761630767643,0.004,113640.0,113630.0,0.21051231]
[1761630767941,0.004,113640.0,113630.0,0.1472062]
[1761630769542,0.004,113640.0,113630.0,0.2261333]
[1761630769736,0.004,113640.0,113630.0,0.37953921]
[1761630770037,0.004,113640.0,113630.0,0.97953921]
[1761630770835,0.0444,113660.0,113650.0,0.05647]
[1761630771340,0.19780591,113660.0,113650.0,0.05647]
[1761630772540,0.20080591,113660.0,113650.0,0.05747]
[1761630774836,0.20080591,113660.0,113650.0,0.001]
[1761630774837,0.21392591,113660.0,113650.0,0.001]
[1761630775238,0.23636403,113660.0,113650.0,0.001]
[1761630775842,0.08295812,113660.0,113650.0,0.001]
[1761630776139,0.23636403,113660.0,113650.0,0.001]
[1761630776544,0.08295812,113660.0,113650.0,0.0229]
[1761630776735,0.23636403,113660.0,113650.0,0.0229]
[1761630777837,0.23636403,113660.0,113650.0,0.0446]
[1761630778344,0.21392591,113660.0,113650.0,0.0446]
[1761630778637,0.20080591,113660.0,113650.0,0.0572]
[1761630781842,0.0474,113660.0,113650.0,0.0572]
[1761630782343,0.003,113660.0,113650.0,0.145191]
[1761630782646,0.04274,113680.0,113670.0,0.03555]
[1761630782836,0.04274,113680.0,113670.0,0.05659]
[1761630783238,0.04274,113680.0,113670.0,0.1445655]
[1761630783536,0.19614591,113680.0,113670.0,0.1445655]
[1761630783941,0.19714591,113680.0,113670.0,0.05659]
[1761630784342,0.21036591,113680.0,113670.0,0.04399]
[1761630784942,0.21336591,113680.0,113670.0,0.04999]
[1761630785147,0.21336591,113680.0,113670.0,0.06259]
[1761630785847,0.20014591,113680.0,113670.0,0.06259]
[1761630786038,0.19614591,113680.0,113670.0,0.05659]
[1761630786240,0.04574,113680.0,113670.0,0.06659]
[1761630786544,0.19914591,113680.0,113670.0,0.06659]
[1761630787847,0.21236591,113680.0,113670.0,0.05399]
[1761630788643,0.36577182,113680.0,113670.0,0.03104]
[1761630788848,0.36577182,113680.0,113670.0,0.01]
[1761630789047,0.21236591,113680.0,113670.0,0.01]
[1761630789248,0.21236591,113680.0,113670.0,0.03101]
[1761630789446,0.21236591,113680.0,113670.0,0.05235]
[1761630789842,0.05896,113680.0,113670.0,0.05235]
[1761630790047,0.21236591,113680.0,113670.0,0.05235]
[1761630791444,0.21236591,113680.0,113670.0,0.03101]
[1761630791742,0.21236591,113680.0,113670.0,0.05235]
[1761630792157,0.21236591,113680.0,113670.0,0.01]
[1761630792452,0.21236591,113680.0,113670.0,0.05235]
[1761630795156,0.21236591,113680.0,113670.0,0.01]
[1761630796055,0.36577182,113680.0,113670.0,0.01]
[1761630797261,0.96577182,113680.0,113670.0,0.01]
[1761630797451,0.43918921,113680.0,113670.0,0.01]
[1761630801246,1.01918921,113680.0,113670.0,0.01]
[1761630801655,1.61918921,113680.0,113640.0,0.05522]
[1761630801862,0.19686591,113650.0,113640.0,0.05522]
[1761630802255,0.04346,113650.0,113640.0,0.05522]
[1761630802559,0.19686591,113650.0,113640.0,0.05522]
[1761630803763,0.19685493,113650.0,113640.0,0.05522]
[1761630804059,0.19685493,113650.0,113640.0,0.05822]
[1761630804555,0.19685493,113650.0,113640.0,0.05522]
[1761630804754,0.19985493,113650.0,113640.0,0.05922]
[1761630807759,0.04646,113650.0,113640.0,0.05922]
[1761630807964,0.19985493,113650.0,113640.0,0.05922]
[1761630811062,0.35924986,113650.0,113640.0,0.004]
[1761630812060,0.35924986,113650.0,113640.0,0.02565]
[1761630812862,0.35924986,113650.0,113640.0,0.004]
[1761630813067,0.35924986,113650.0,113640.0,0.02565]
[1761630813366,0.35924986,113650.0,113640.0,0.04752]
[1761630815065,0.367382,113650.0,113640.0,0.04752]
[1761630815565,0.367382,113650.0,113640.0,0.004]
[1761630816569,0.39077926,113650.0,113640.0,0.004]
[1761630819173,0.08398442,113650.0,113640.0,0.004]
[1761630819370,0.39077428,113650.0,113640.0,0.004]
[1761630823275,0.47876528,113650.0,113640.0,0.004]
[1761630823470,0.05747,113620.0,113610.0,0.04352]
[1761630823670,0.1321142,113620.0,113610.0,0.05697]
[1761630823975,0.43890406,113620.0,113610.0,0.05697]
[1761630824169,0.28550913,113620.0,113610.0,0.05697]
[1761630824780,0.29050913,113620.0,113610.0,0.05847902]
[1761630826272,0.1371142,113620.0,113610.0,0.05847902]
[1761630826478,0.29050913,113620.0,113610.0,0.05847902]
[1761630827580,0.0930142,113620.0,113610.0,0.21187395]
[1761630827883,0.0930142,113620.0,113610.0,0.29989565]
[1761630828083,0.005,113620.0,113610.0,0.89989565]
[1761630828582,0.005,113620.0,113610.0,0.29989565]
[1761630829982,0.0930136,113620.0,113610.0,0.29989565]
[1761630830886,0.005,113620.0,113610.0,0.29989565]
[1761630833084,0.005,113620.0,113610.0,0.38289565]
[1761630833488,0.005,113620.0,113610.0,0.82950072]
[1761630833784,0.0491,113620.0,113610.0,0.98289565]
[1761630834383,0.20249493,113620.0,113610.0,0.98289565]
[1761630834775,0.20249493,113620.0,113610.0,0.38289565]
[1761630835587,0.19749493,113620.0,113610.0,0.38289565]
[1761630835782,0.20149493,113620.0,113610.0,0.29487395]
[1761630836288,0.0481,113620.0,113610.0,0.38289565]
[1761630836675,0.20149493,113620.0,113610.0,0.38289565]
[1761630838093,0.20149493,113620.0,113610.0,0.22950072]
[1761630838591,0.0481,113620.0,113610.0,0.38289565]
[1761630838792,0.20149493,113620.0,113610.0,0.29989565]
[1761630839386,0.20149493,113620.0,113610.0,0.05847902]
[1761630840689,0.0481,113620.0,113610.0,0.05847902]
[1761630840895,0.0481,113620.0,113610.0,0.21187395]
[1761630841085,0.20149493,113620.0,113610.0,0.29989595]
[1761630841685,0.20149493,113620.0,113610.0,0.14650102]
[1761630841886,0.0481,113620.0,113610.0,0.14650102]
[1761630842085,0.20149493,113620.0,113610.0,0.14650102]
[1761630842882,0.004,113620.0,113610.0,0.29989595]
[1761630843794,0.004,113620.0,113610.0,0.89989595]
[1761630844594,0.004,113620.0,113610.0,0.98289595]
[1761630845395,0.004,113620.0,113610.0,0.38289595]
[1761630846198,0.19751493,113640.0,113630.0,0.05631]
[1761630846396,0.19751493,113640.0,113630.0,0.29771123]
[1761630846697,0.19751493,113650.0,113640.0,0.03457]
[1761630846900,0.22106637,113650.0,113640.0,0.21125493]
[1761630847095,0.19751493,113650.0,113640.0,0.1458589]
[1761630847310,0.19775493,113650.0,113640.0,0.1287789]
[1761630847810,0.19775493,113650.0,113640.0,0.13028792]
[1761630848307,0.20775493,113650.0,113640.0,0.13028792]
[1761630848606,0.20775493,113650.0,113640.0,0.04228902]
[1761630848811,0.22159493,113650.0,113640.0,0.04228902]
[1761630849213,0.22159493,113650.0,113640.0,0.02866902]
[1761630850519,0.37498986,113650.0,113640.0,0.02866902]
[1761630850914,0.22159493,113650.0,113640.0,0.02866902]
[1761630852213,0.22159493,113650.0,113640.0,0.04228902]
[1761630852615,0.22159493,113650.0,113640.0,0.13028792]
[1761630852616,0.0682,113650.0,113640.0,0.13028792]
[1761630852816,0.22159493,113650.0,113640.0,0.13028792]
[1761630853616,0.22159493,113650.0,113640.0,0.04228902]
[1761630854115,0.22159493,113650.0,113640.0,0.02866902]
[1761630854617,0.37498986,113650.0,113640.0,0.00150902]
[1761630855214,0.37498986,113650.0,113640.0,0.02334902]
[1761630855814,0.37498986,113650.0,113640.0,0.00150902]
[1761630856320,0.37498986,113650.0,113640.0,0.02334902]
[1761630857410,0.37498986,113650.0,113640.0,0.00150902]
[1761630857809,0.39854719,113650.0,113640.0,0.00150902]
[1761630863017,0.99854719,113650.0,113640.0,0.00150902]
[1761630865723,0.84519448,113650.0,113640.0,0.00150902]
[1761630867422,0.69175733,113650.0,113640.0,0.04663902]
[1761630867724,0.24519448,113650.0,113640.0,0.04663902]
[1761630868223,0.24519448,113650.0,113640.0,0.02334902]
[1761630869026,0.09175733,113650.0,113640.0,0.02334902]
[1761630869226,0.24519448,113650.0,113640.0,0.02334902]
[1761630871730,0.24519448,113650.0,113640.0,0.04537902]
[1761630874129,0.03355733,113650.0,113640.0,0.21155617]
[1761630874328,0.01,113650.0,113640.0,0.29955457]
[1761630874831,0.05451,113650.0,113640.0,0.05811902]
[1761630875022,0.22193715,113650.0,113640.0,0.04537902]
[1761630877330,0.05451,113650.0,113640.0,0.05811902]
[1761630877635,0.20794715,113650.0,113640.0,0.05811902]
[1761630877834,0.22193715,113650.0,113640.0,0.05811902]
[1761630879341,0.22193715,113650.0,113640.0,0.14611772]
[1761630880636,0.0685,113650.0,113640.0,0.14611772]
[1761630880830,0.22193715,113650.0,113640.0,0.05811902]
[1761630883138,0.21293715,113650.0,113640.0,0.05811902]
[1761630883437,0.21493715,113650.0,113640.0,0.05811902]
[1761630883638,0.0615,113650.0,113640.0,0.04537902]
[1761630883838,0.21493715,113650.0,113640.0,0.04537902]
[1761630884831,0.21493715,113650.0,113640.0,0.13337782]
[1761630887134,0.21493715,113650.0,113640.0,0.00150902]
[1761630892548,0.23834189,113650.0,113640.0,0.00150902]
[1761630892747,0.21493715,113650.0,113640.0,0.00150902]
[1761630893139,0.21493715,113650.0,113640.0,0.04584902]
[1761630896040,0.21493715,113650.0,113640.0,0.02381902]
[1761630896347,0.21493715,113650.0,113640.0,0.00150902]
[1761630900547,0.23835248,113650.0,113640.0,0.00150902]
[1761630901649,0.23835248,113650.0,113640.0,0.04646902]
[1761630902851,0.08491533,113650.0,113640.0,0.04646902]
[1761630903052,0.23835248,113650.0,113640.0,0.04646902]
[1761630903546,0.23835248,113650.0,113640.0,0.00150902]
[1761630903749,0.05684,113610.0,113600.0,0.15362455]
[1761630904045,0.05684,113630.0,113610.0,0.0880223]
[1761630904241,0.04363,113630.0,113620.0,0.2560146]
[1761630904441,0.04363,113630.0,113620.0,0.168]
[1761630905449,0.04363,113630.0,113620.0,0.2560147]
[1761630905652,0.04363,113630.0,113620.0,0.178]
[1761630906048,0.04363,113630.0,113620.0,0.2660148]
[1761630906652,0.19706715,113630.0,113620.0,0.2660148]
[1761630906852,0.19706715,113630.0,113620.0,0.2760148]
[1761630907048,0.21365715,113630.0,113620.0,0.131]
[1761630907252,0.23706048,113630.0,113620.0,0.09028866]
[1761630908153,0.23706048,113630.0,113620.0,0.10028866]
[1761630908548,0.24535419,113630.0,113620.0,0.10028866]
[1761630908853,0.23706048,113630.0,113620.0,0.10028866]
[1761630909254,0.23806048,113630.0,113620.0,0.10028866]
[1761630909454,0.24406048,113630.0,113620.0,0.09928866]
[1761630909641,0.25232399,113630.0,113620.0,0.09928866]
[1761630910752,0.24406048,113630.0,113620.0,0.09928866]
[1761630911249,0.22065715,113630.0,113620.0,0.09928866]
[1761630913558,0.22065715,113630.0,113620.0,0.12146866]
[1761630914157,0.22065715,113630.0,113620.0,0.09928866]
[1761630915458,0.22065715,113630.0,113620.0,0.12146866]
[1761630916252,0.22065715,113630.0,113620.0,0.09928866]
[1761630917551,0.2440534,113630.0,113620.0,0.12146866]
[1761630917955,0.2440534,113630.0,113620.0,0.14427866]
[1761630918354,0.2440534,113630.0,113620.0,0.09928866]
[1761630920964,0.22065715,113630.0,113620.0,0.09928866]
[1761630921766,0.2440547,113630.0,113620.0,0.09928866]
[1761630922260,0.2440547,113630.0,113620.0,0.12146866]
[1761630922459,0.2440547,113630.0,113620.0,0.14427866]
[1761630925266,0.2440547,113630.0,113620.0,0.12146866]
[1761630925766,0.39758049,113630.0,113620.0,0.12146866]
[1761630926165,0.39758049,113630.0,113620.0,0.09928866]
[1761630928573,0.04355,113590.0,113580.0,0.3073304]
[1761630928760,0.04355,113590.0,113580.0,0.1454033]
[1761630928958,0.19703147,113590.0,113580.0,0.15385268]
[1761630929966,0.18272177,113590.0,113580.0,0.15385268]
[1761630930161,0.18572177,113590.0,113580.0,0.75485268]
[1761630931459,0.18572177,113590.0,113580.0,0.90833415]
[1761630931658,0.18572177,113590.0,113580.0,0.75485268]
[1761630931855,0.18572177,113590.0,113580.0,0.05836]
[1761630932067,0.01397,113560.0,113540.0,0.11169996]
[1761630932260,0.50399441,113550.0,113510.0,0.0572]
[1761630932465,0.50399441,113550.0,113530.0,0.01322]
[1761630932466,0.15348147,113540.0,113530.0,0.01322]
[1761630932665,0.30696294,113540.0,113530.0,0.0572]
[1761630932965,0.15348147,113560.0,113540.0,0.0572]
[1761630933167,0.02510256,113560.0,113550.0,0.15348147]
[1761630933368,0.11158565,113600.0,113570.0,0.1320324]
[1761630933561,0.02506728,113600.0,113590.0,0.19746147]
[1761630933761,0.0880108,113630.0,113600.0,0.0880296]
[1761630934063,0.0880108,113630.0,113620.0,0.0572]
[1761630934268,0.0880013,113640.0,113600.0,0.0572]
[1761630934465,0.13631681,113640.0,113600.0,0.0572]
[1761630934668,0.0880194,113620.0,113600.0,0.0572]
[1761630935372,0.24150407,113610.0,113600.0,0.0572]
[1761630936774,0.25350407,113610.0,113600.0,0.0572]
[1761630936974,0.25350407,113610.0,113600.0,0.21068147]
[1761630937164,0.25450407,113610.0,113600.0,0.21068147]
[1761630937673,0.25450407,113610.0,113600.0,0.1472]
[1761630937972,0.25450407,113610.0,113600.0,0.30068147]
[1761630939475,0.25450407,113610.0,113600.0,0.1472]
[1761630941369,0.013,113610.0,113600.0,0.54219324]
[1761630941569,0.02355125,113650.0,113640.0,0.0572]
[1761630941873,0.15348147,113650.0,113640.0,0.0572]
[1761630942782,0.17948147,113650.0,113640.0,0.0582]
[1761630943369,0.33296294,113650.0,113640.0,0.0582]
[1761630943569,0.31896294,113650.0,113640.0,0.0592]
[1761630943970,0.16348147,113650.0,113640.0,0.0592]
[1761630945770,0.01,113650.0,113640.0,0.30068107]
[1761630945971,0.01,113650.0,113640.0,0.90068107]
[1761630946176,0.21673996,113700.0,113680.0,0.01322]
[1761630946376,0.30696294,113690.0,113680.0,0.01322]
[1761630946577,0.59234537,113690.0,113680.0,0.01322]
[1761630947283,0.33234537,113690.0,113680.0,0.01322]
[1761630947580,0.63234537,113690.0,113680.0,0.01322]
[1761630948373,0.33834537,113690.0,113680.0,0.0592]
[1761630948574,0.41834537,113690.0,113680.0,0.0592]
[1761630948974,0.41934537,113690.0,113680.0,0.0592]
[1761630949477,1.01934537,113690.0,113680.0,0.0592]
[1761630950579,0.99396294,113690.0,113680.0,0.0592]